fUST/lending_fUST_20250423
["ID","MTS","AMOUNT","RATE_DAILY","PERIOD"]
[358780054,1745422275979,-2175.19,0.00021369,2]
[358780055,1745422275989,-4454.73,0.00021369,2]
[358780056,1745422275999,-500.0,0.00021369,2]
[358780057,1745422276010,-4421.38,0.00021369,2]
[358780058,1745422276020,-500.0,0.00021369,2]
[358780059,1745422276031,-500.0,0.00021369,2]
[358780060,1745422276041,-500.0,0.00021369,2]
[358780061,1745422276051,-500.0,0.00021369,2]
[358780062,1745422276060,-500.0,0.00021369,2]
[358780063,1745422276071,-500.0,0.00021369,2]
[358780064,1745422276080,-500.0,0.00021369,2]
[358780065,1745422276089,-500.0,0.00021369,2]
[358780066,1745422276099,-255.23512674,0.00021369,2]
[358780067,1745422276108,-500.0,0.00021369,2]
[358780068,1745422276118,-500.0,0.00021369,2]
[358780069,1745422276128,-500.0,0.00021369,2]
[358780070,1745422276138,-500.0,0.00021369,2]
[358780071,1745422276151,-500.0,0.00021369,2]
[358780072,1745422276161,-1146.61,0.00021369,2]
[358780073,1745422276170,-733.07,0.00021369,2]
[358780074,1745422276180,-500.0,0.00021369,2]
[358780075,1745422276190,-500.0,0.00021369,2]
[358780076,1745422276200,-500.0,0.00021369,2]
[358780077,1745422276210,-500.0,0.00021369,2]
[358780078,1745422276220,-500.0,0.00021369,2]
[358780079,1745422276230,-500.0,0.00021369,2]
[358780080,1745422276381,-500.0,0.00021369,2]
[358780081,1745422276396,-500.0,0.00021369,2]
[358780082,1745422276406,-500.0,0.00021369,2]
[358780083,1745422276416,-500.0,0.00021369,2]
[358780084,1745422276426,-559.8,0.00021369,2]
[358780085,1745422276436,-564.99,0.00021369,2]
[358780086,1745422276445,-551.66,0.00021369,2]
[358780087,1745422276455,-500.0,0.00021369,2]
[358780088,1745422276465,-500.0,0.00021369,2]
[358780089,1745422276474,-1261.588818,0.00021369,2]
[358780090,1745422276484,-1261.58881,0.00021369,2]
[358780091,1745422276493,-300.0,0.00021369,2]
[358780092,1745422276502,-762.07,0.00021369,2]
[358780093,1745422276512,-1115.7,0.00021369,2]
[358780094,1745422276523,-500.0,0.00021369,2]
[358780095,1745422276533,-151.0,0.00021369,2]
[358780096,1745422276543,-688.43,0.00021369,2]
[358780097,1745422276552,-500.0,0.00021369,2]
[358780098,1745422276562,-2630.14,0.00021369,2]
[358780099,1745422276571,-500.0,0.00021369,2]
[358780100,1745422276581,-500.0,0.00021369,2]
[358780101,1745422276590,-500.0,0.00021369,2]
[358780102,1745422276600,-500.0,0.00021369,2]
[358780103,1745422276610,-764.95,0.00021369,2]
[358780104,1745422276620,-884.75,0.00021369,2]
[358780105,1745422276630,-500.0,0.00021369,2]
[358780106,1745422276641,-3501.3,0.00021369,2]
[358780107,1745422276650,-500.0,0.00021369,2]
[358780108,1745422276661,-500.0,0.00021369,2]
[358780109,1745422276670,-1338.63,0.00021369,2]
[358780110,1745422276679,-502.07,0.00021369,2]
[358780111,1745422276689,-577.68,0.00021369,2]
[358780112,1745422276698,-500.0,0.00021369,2]
[358780113,1745422276707,-4051.75,0.00021369,2]
[358780114,1745422276718,-500.0,0.00021369,2]
[358780115,1745422276727,-500.0,0.00021369,2]
[358780116,1745422276737,-668.05,0.00021369,2]
[358780117,1745422276747,-500.0,0.00021369,2]
[358780118,1745422276756,-195.822074,0.00021369,2]
[358780119,1745422276766,-500.0,0.00021369,2]
[358780120,1745422276775,-500.0,0.00021369,2]
[358780121,1745422276785,-195.822066,0.00021369,2]
[358780122,1745422276794,-633.95,0.00021369,2]
[358780123,1745422276803,-500.0,0.00021369,2]
[358780124,1745422276813,-1302.8,0.00021369,2]
[358780125,1745422276824,-500.0,0.00021369,2]
[358780126,1745422276834,-1153.65,0.00021369,2]
[358780127,1745422276843,-553.58,0.00021369,2]
[358780128,1745422276854,-716.26,0.00021369,2]
[358780129,1745422276864,-500.0,0.00021369,2]
[358780130,1745422276874,-500.0,0.00021369,2]
[358780131,1745422276885,-500.0,0.00021369,2]
[358780132,1745422276897,-500.0,0.00021369,2]
[358780133,1745422276907,-500.0,0.00021369,2]
[358780134,1745422276916,-12296.18,0.00021369,2]
[358780135,1745422276926,-500.0,0.00021369,2]
[358780136,1745422276936,-1046.67,0.00021369,2]
[358780137,1745422276946,-851.89,0.00021369,2]
[358780138,1745422276956,-500.0,0.00021369,2]
[358780139,1745422276966,-534.56,0.00021369,2]
[358780140,1745422276976,-1188.25,0.00021369,2]
[358780141,1745422276986,-540.5163519,0.00021369,2]
[358780142,1745422276996,-500.0,0.00021369,2]
[358780143,1745422277005,-731.6,0.00021369,2]
[358780144,1745422277015,-12626.43,0.00021369,2]
[358780145,1745422277025,-696.88,0.00021369,2]
[358780146,1745422277034,-377.820616,0.00021369,2]
[358780147,1745422277043,-186.79637832,0.00021369,2]
[358780148,1745422277053,-1205.58,0.00021369,2]
[358780149,1745422277063,-377.820608,0.00021369,2]
[358780150,1745422277072,-500.0,0.00021369,2]
[358780151,1745422277082,-500.0,0.00021369,2]
[358780152,1745422277091,-582.76714546,0.00021369,2]
[358780153,1745422277100,-500.0,0.00021369,2]
[358780154,1745422277110,-500.0,0.00021369,2]
[358780155,1745422277120,-1012.84,0.00021369,2]
[358780156,1745422277130,-500.0,0.00021369,2]
[358780157,1745422277140,-4914.19,0.00021369,2]
[358780158,1745422277150,-4299.91,0.00021369,2]
[358780159,1745422277160,-510.48,0.00021369,2]
[358780160,1745422277170,-707.64,0.00021369,2]
[358780161,1745422277179,-1181.56,0.00021369,2]
[358780162,1745422277189,-1035.17,0.00021369,2]
[358780163,1745422277199,-863.0,0.00021369,2]
[358780164,1745422277208,-834.94,0.00021369,2]
[358780165,1745422277218,-3435.75,0.00021369,2]
[358780166,1745422277228,-2278.45,0.00021369,2]
[358780167,1745422277237,-753.56,0.00021369,2]
[358780168,1745422277247,-356.42203764,0.00021369,2]
[358780169,1745422277256,-530.38,0.00021369,2]
[358780170,1745422277265,-814.85,0.00021369,2]
[358780171,1745422277276,-535.21,0.00021369,2]
[358780172,1745422277286,-500.0,0.00021369,2]
[358780173,1745422277296,-500.0,0.00021369,2]
[358780174,1745422277305,-500.0,0.00021369,2]
[358780175,1745422277314,-890.07,0.00021369,2]
[358780176,1745422277324,-615.6,0.00021369,2]
[358780177,1745422277333,-957.38,0.00021369,2]
[358780178,1745422277343,-926.97,0.00021369,2]
[358780179,1745422277352,-707.38,0.00021369,2]
[358780180,1745422277361,-558.82,0.00021369,2]
[358780181,1745422277370,-1273.56,0.00021369,2]
[358780182,1745422277380,-500.0,0.00021369,2]
[358780183,1745422277391,-500.0,0.00021369,2]
[358780184,1745422277400,-1103.17,0.00021369,2]
[358780185,1745422277409,-500.0,0.00021369,2]
[358780186,1745422277418,-500.0,0.00021369,2]
[358780187,1745422277428,-500.0,0.00021369,2]
[358780188,1745422277437,-500.0,0.00021369,2]
[358780189,1745422277446,-500.0,0.00021369,2]
[358780190,1745422277456,-500.0,0.00021369,2]
[358780191,1745422277465,-500.0,0.00021369,2]
[358780192,1745422277475,-657.04,0.00021369,2]
[358780193,1745422277485,-500.0,0.00021369,2]
[358780194,1745422277494,-500.0,0.00021369,2]
[358780195,1745422277503,-500.0,0.00021369,2]
[358780196,1745422277512,-500.0,0.00021369,2]
[358780197,1745422277522,-2543.41,0.00021369,2]
[358780198,1745422277531,-1609.82,0.00021369,2]
[358780199,1745422277541,-7498.68,0.00021369,2]
[358780200,1745422277550,-783.91,0.00021369,2]
[358780201,1745422277559,-500.0,0.00021369,2]
[358780202,1745422277569,-2933.96,0.00021369,2]
[358780203,1745422277579,-692.21,0.00021369,2]
[358780204,1745422277588,-154.71,0.00021369,2]
[358780205,1745422277597,-935.39,0.00021369,2]
[358780206,1745422277606,-500.0,0.00021369,2]
[358780207,1745422277615,-5239.0,0.00021369,2]
[358780208,1745422277624,-537.86,0.00021369,2]
[358780209,1745422277633,-500.0,0.00021369,2]
[358780210,1745422277644,-616.52,0.00021369,2]
[358780211,1745422277653,-530.24391926,0.00021373,2]
[358780212,1745422277663,-603.67373117,0.00021373,2]
[358780213,1745422277673,-318.0490392,0.00021373,2]
[358780214,1745422277683,-500.0,0.00021373,2]
[358780215,1745422277693,-500.0,0.00021373,2]
[358780216,1745422277703,-500.0,0.00021373,2]
[358780217,1745422277721,-500.0,0.00021373,2]
[358780218,1745422277739,-500.0,0.00021373,2]
[358780219,1745422277749,-500.0,0.00021373,2]
[358780220,1745422277759,-500.0,0.00021373,2]
[358780221,1745422277768,-280.30627809,0.00021373,2]
[358780222,1745422277778,-500.0,0.00021373,2]
[358780223,1745422277787,-500.0,0.00021373,2]
[358780224,1745422277798,-500.0,0.00021373,2]
[358780225,1745422277808,-500.0,0.00021373,2]
[358780226,1745422277820,-500.0,0.00021373,2]
[358780227,1745422277833,-500.16551554,0.00021373,2]
[358780228,1745422277843,-500.0,0.00021373,2]
[358780229,1745422277853,-500.0,0.00021373,2]
[358780230,1745422277864,-500.0,0.00021373,2]
[358780231,1745422277874,-500.0,0.00021373,2]
[358780232,1745422277884,-505.84413546,0.00021373,2]
[358780233,1745422277896,-501.24823977,0.00021373,2]
[358780234,1745422277906,-500.0,0.00021373,2]
[358780235,1745422277916,-528.71929353,0.00021373,2]
[358780236,1745422277925,-500.0,0.00021373,2]
[358780237,1745422277936,-500.0,0.00021373,2]
[358780238,1745422277946,-500.0,0.00021373,2]
[358780239,1745422277955,-520.51501559,0.00021373,2]
[358780240,1745422277966,-500.0,0.00021373,2]
[358780241,1745422277976,-500.0,0.00021373,2]
[358780242,1745422277986,-500.0,0.00021373,2]
[358780243,1745422277996,-500.0,0.00021373,2]
[358780244,1745422278006,-500.0,0.00021373,2]
[358780245,1745422278016,-500.0,0.00021373,2]
[358780246,1745422278026,-398.61186875,0.00021373,2]
[358780247,1745422278035,-501.34206794,0.00021373,2]
[358780248,1745422278046,-620.98975835,0.00021373,2]
[358780249,1745422278056,-500.0,0.00021373,2]
[358780250,1745422278067,-587.0,0.00021622,2]
[358780251,1745422278077,-160.0,0.00021643,3]
[358780252,1745422278087,-151.0,0.00021643,2]
[358780253,1745422278098,-155.919184,0.00021643,2]
[358780254,1745422278107,-500.0,0.00021643,2]
[358780255,1745422278117,-500.0,0.00021643,2]
[358780256,1745422278127,-500.0,0.00021643,2]
[358780257,1745422278137,-151.0,0.00021643,2]
[358780258,1745422278149,-594.19,0.00021643,2]
[358780259,1745422278160,-909.19,0.00021643,2]
[358780260,1745422278170,-615.00799868,0.00021643,2]
[358780261,1745422278180,-500.0,0.00021643,2]
[358780262,1745422278189,-500.0,0.00021643,2]
[358780263,1745422278341,-500.0,0.00021643,2]
[358780264,1745422278352,-500.0,0.00021643,2]
[358780265,1745422278362,-500.0,0.00021643,2]
[358780266,1745422278372,-896.26,0.00021643,2]
[358780267,1745422278382,-1026.46,0.00021643,2]
[358780268,1745422278394,-500.0,0.00021643,2]
[358780269,1745422278404,-500.0,0.00021643,2]
[358780270,1745422278415,-500.0,0.00021643,2]
[358780271,1745422278424,-500.0,0.00021643,2]
[358780272,1745422278434,-519.07,0.00021643,2]
[358780273,1745422278444,-182.99334929,0.00021643,2]
[358780274,1745422278453,-220.76427403,0.00021643,2]
[358780275,1745422278463,-151.0,0.00021643,2]
[358780276,1745422278472,-151.0,0.00021643,2]
[358780277,1745422278482,-500.0,0.00021643,2]
[358780278,1745422278491,-151.0,0.00021643,2]
[358780279,1745422278501,-500.0,0.00021643,2]
[358780280,1745422278512,-500.0,0.00021643,2]
[358780281,1745422278522,-500.0,0.00021643,2]
[358780282,1745422278532,-500.0,0.00021643,2]
[358780283,1745422278543,-1150.28,0.00021643,2]
[358780284,1745422278553,-567.12142585,0.00021643,2]
[358780285,1745422278564,-251.765975,0.00021643,2]
[358780286,1745422278573,-500.0,0.00021643,2]
[358780287,1745422278583,-544.77,0.00021643,2]
[358780288,1745422278594,-251.765984,0.00021643,2]
[358780289,1745422278604,-500.0,0.00021643,2]
[358780290,1745422278614,-500.0,0.00021643,2]
[358780291,1745422278624,-899.96,0.00021643,2]
[358780292,1745422278633,-151.0,0.00021643,2]
[358780293,1745422278646,-500.0,0.00021643,2]
[358780294,1745422278655,-500.0,0.00021643,2]
[358780295,1745422278666,-500.0,0.00021643,2]
[358780296,1745422278676,-500.0,0.00021643,2]
[358780297,1745422278686,-3329.35,0.00021643,2]
[358780298,1745422278696,-500.0,0.00021643,2]
[358780299,1745422278706,-528.28,0.00021643,2]
[358780300,1745422278716,-500.0,0.00021643,2]
[358780301,1745422278732,-644.46,0.00021643,2]
[358780302,1745422278749,-500.0,0.00021643,2]
[358780303,1745422278765,-500.0,0.00021643,2]
[358780304,1745422278775,-500.0,0.00021643,2]
[358780305,1745422278784,-756.81,0.00021643,2]
[358780306,1745422278794,-572.66,0.00021643,2]
[358780307,1745422278803,-500.0,0.00021643,2]
[358780308,1745422278813,-500.0,0.00021643,2]
[358780309,1745422278824,-500.0,0.00021643,2]
[358780310,1745422278835,-903.55,0.00021643,2]
[358780311,1745422278844,-506.12,0.00021643,2]
[358780312,1745422278854,-500.0,0.00021643,2]
[358780313,1745422278864,-500.0,0.00021643,2]
[358780314,1745422278874,-500.0,0.00021643,2]
[358780315,1745422278884,-500.0,0.00021643,2]
[358780316,1745422278894,-500.0,0.00021643,2]
[358780317,1745422278906,-500.0,0.00021643,2]
[358780318,1745422278916,-2150.63,0.00021643,2]
[358780319,1745422278925,-785.397552,0.00021643,2]
[358780320,1745422278935,-500.0,0.00021643,2]
[358780321,1745422278945,-785.397552,0.00021643,2]
[358780322,1745422278955,-500.0,0.00021643,2]
[358780323,1745422278964,-500.0,0.00021643,2]
[358780324,1745422278974,-614.57,0.00021643,2]
[358780325,1745422278984,-677.08,0.00021643,2]
[358780326,1745422278994,-500.0,0.00021643,2]
[358780327,1745422279003,-596.25,0.00021643,2]
[358780328,1745422279013,-500.0,0.00021643,2]
[358780329,1745422279023,-740.32,0.00021643,2]
[358780330,1745422279032,-855.06,0.00021643,2]
[358780331,1745422279042,-151.0,0.00021643,2]
[358780332,1745422279052,-815.0,0.00021643,2]
[358780333,1745422279062,-500.0,0.00021643,2]
[358780334,1745422279072,-831.25,0.00021643,2]
[358780335,1745422279081,-2175.19,0.00021643,2]
[358780336,1745422279090,-4454.73,0.00021643,2]
[358780337,1745422279100,-269.71574917,0.00021643,2]
[358780338,1745422279110,-4421.38,0.00021643,2]
[358780339,1745422279119,-500.0,0.00021643,2]
[358780340,1745422279129,-500.0,0.00021643,2]
[358780341,1745422279139,-500.0,0.00021643,2]
[358780342,1745422279149,-500.0,0.00021643,2]
[358780343,1745422279159,-500.0,0.00021643,2]
[358780344,1745422279169,-500.0,0.00021643,2]
[358780345,1745422279179,-500.0,0.00021643,2]
[358780346,1745422279189,-500.0,0.00021643,2]
[358780347,1745422279199,-500.0,0.00021643,2]
[358780348,1745422279210,-500.0,0.00021643,2]
[358780349,1745422279220,-500.0,0.00021643,2]
[358780350,1745422279230,-500.0,0.00021643,2]
[358780351,1745422279240,-500.0,0.00021643,2]
[358780352,1745422279250,-1146.61,0.00021643,2]
[358780353,1745422279260,-733.07,0.00021643,2]
[358780354,1745422279270,-500.0,0.00021643,2]
[358780355,1745422279280,-500.0,0.00021643,2]
[358780356,1745422279289,-500.0,0.00021643,2]
[358780357,1745422279299,-180.26735372,0.00021643,2]
[358780358,1745422279309,-500.0,0.00021643,2]
[358780359,1745422279320,-500.0,0.00021643,2]
[358780360,1745422279329,-500.0,0.00021643,2]
[358780361,1745422279340,-500.0,0.00021643,2]
[358780362,1745422279350,-500.0,0.00021643,2]
[358780363,1745422279360,-500.0,0.00021643,2]
[358780364,1745422279369,-559.8,0.00021643,2]
[358780365,1745422279379,-564.99,0.00021643,2]
[358780366,1745422279388,-551.66,0.00021643,2]
[358780367,1745422279399,-500.0,0.00021643,2]
[358780368,1745422279408,-500.0,0.00021643,2]
[358780369,1745422279418,-762.07,0.00021643,2]
[358780370,1745422279428,-1115.7,0.00021643,2]
[358780371,1745422279438,-500.0,0.00021643,2]
[358780372,1745422279447,-688.43,0.00021643,2]
[358780373,1745422279457,-500.0,0.00021643,2]
[358780374,1745422279467,-2630.14,0.00021643,2]
[358780375,1745422279477,-500.0,0.00021643,2]
[358780376,1745422279486,-500.0,0.00021643,2]
[358780377,1745422279496,-500.0,0.00021643,2]
[358780378,1745422279506,-500.0,0.00021643,2]
[358780379,1745422279516,-764.95,0.00021643,2]
[358780380,1745422279526,-884.75,0.00021643,2]
[358780381,1745422279536,-226.48927322,0.00021643,2]
[358780382,1745422279546,-3501.3,0.00021643,2]
[358780383,1745422279555,-500.0,0.00021643,2]
[358780384,1745422279565,-500.0,0.00021643,2]
[358780385,1745422279574,-1338.63,0.00021643,2]
[358780386,1745422279584,-502.07,0.00021643,2]
[358780387,1745422279593,-577.68,0.00021643,2]
[358780388,1745422279603,-500.0,0.00021643,2]
[358780389,1745422279612,-4051.75,0.00021643,2]
[358780390,1745422279621,-513.93552104,0.00021643,2]
[358780391,1745422279631,-500.0,0.00021643,2]
[358780392,1745422279643,-668.05,0.00021643,2]
[358780393,1745422279659,-500.0,0.00021643,2]
[358780394,1745422279668,-500.0,0.00021643,2]
[358780395,1745422279678,-500.0,0.00021643,2]
[358780396,1745422279691,-633.95,0.00021643,2]
[358780397,1745422279701,-500.0,0.00021643,2]
[358780398,1745422279710,-1302.8,0.00021643,2]
[358780399,1745422279719,-500.0,0.00021643,2]
[358780400,1745422279729,-1153.65,0.00021643,2]
[358780401,1745422279739,-553.58,0.00021643,2]
[358780402,1745422279748,-716.26,0.00021643,2]
[358780403,1745422279758,-500.0,0.00021643,2]
[358780404,1745422279767,-500.0,0.00021643,2]
[358780405,1745422279778,-500.0,0.00021643,2]
[358780406,1745422279787,-500.0,0.00021643,2]
[358780407,1745422279797,-500.0,0.00021643,2]
[358780408,1745422279807,-12296.18,0.00021643,2]
[358780409,1745422279817,-500.0,0.00021643,2]
[358780410,1745422279831,-1046.67,0.00021643,2]
[358780411,1745422279840,-851.89,0.00021643,2]
[358780412,1745422279850,-214.85937126,0.00021643,2]
[358780413,1745422279860,-534.56,0.00021643,2]
[358780414,1745422279870,-1188.25,0.00021643,2]
[358780415,1745422279880,-500.0,0.00021643,2]
[358780416,1745422279889,-731.6,0.00021643,2]
[358780417,1745422279901,-12626.43,0.00021643,2]
[358780418,1745422279910,-696.88,0.00021643,2]
[358780419,1745422279920,-1205.58,0.00021643,2]
[358780420,1745422279929,-500.0,0.00021643,2]
[358780421,1745422279938,-500.0,0.00021643,2]
[358780422,1745422279948,-500.0,0.00021643,2]
[358780423,1745422279957,-500.0,0.00021643,2]
[358780424,1745422279966,-1012.84,0.00021643,2]
[358780425,1745422279976,-500.0,0.00021643,2]
[358780426,1745422279985,-4914.19,0.00021643,2]
[358780427,1745422279995,-4299.91,0.00021643,2]
[358780428,1745422280004,-510.48,0.00021643,2]
[358780429,1745422280014,-707.64,0.00021643,2]
[358780430,1745422280024,-1181.56,0.00021643,2]
[358780431,1745422280163,-1035.17,0.00021643,2]
[358780432,1745422280174,-863.0,0.00021643,2]
[358780433,1745422280184,-834.94,0.00021643,2]
[358780434,1745422280193,-3435.75,0.00021643,2]
[358780435,1745422280203,-2278.45,0.00021643,2]
[358780436,1745422280212,-753.56,0.00021643,2]
[358780437,1745422280223,-530.38,0.00021643,2]
[358780438,1745422280233,-814.85,0.00021643,2]
[358780439,1745422280244,-535.21,0.00021643,2]
[358780440,1745422280254,-500.0,0.00021643,2]
[358780441,1745422280264,-500.0,0.00021643,2]
[358780442,1745422280274,-500.0,0.00021643,2]
[358780443,1745422280283,-890.07,0.00021643,2]
[358780444,1745422280293,-615.6,0.00021643,2]
[358780445,1745422280304,-957.38,0.00021643,2]
[358780446,1745422280314,-926.97,0.00021643,2]
[358780447,1745422280324,-707.38,0.00021643,2]
[358780448,1745422280334,-558.82,0.00021643,2]
[358780449,1745422280343,-1273.56,0.00021643,2]
[358780450,1745422280352,-500.0,0.00021643,2]
[358780451,1745422280362,-500.0,0.00021643,2]
[358780452,1745422280372,-1103.17,0.00021643,2]
[358780453,1745422280382,-500.0,0.00021643,2]
[358780454,1745422280391,-500.0,0.00021643,2]
[358780455,1745422280404,-500.0,0.00021643,2]
[358780456,1745422280414,-500.0,0.00021643,2]
[358780457,1745422280423,-500.0,0.00021643,2]
[358780458,1745422280433,-500.0,0.00021643,2]
[358780459,1745422280442,-500.0,0.00021643,2]
[358780460,1745422280452,-657.04,0.00021643,2]
[358780461,1745422280461,-500.0,0.00021643,2]
[358780462,1745422280471,-449.18584634,0.00021643,2]
[358780463,1745422280481,-500.0,0.00021643,2]
[358780464,1745422280491,-500.0,0.00021643,2]
[358780465,1745422280501,-2543.41,0.00021643,2]
[358780466,1745422280511,-1609.82,0.00021643,2]
[358780467,1745422280520,-7498.68,0.00021643,2]
[358780468,1745422280530,-783.91,0.00021643,2]
[358780469,1745422280539,-500.0,0.00021643,2]
[358780470,1745422280550,-2933.96,0.00021643,2]
[358780471,1745422280561,-692.21,0.00021643,2]
[358780472,1745422280571,-935.39,0.00021643,2]
[358780473,1745422280580,-500.0,0.00021643,2]
[358780474,1745422280590,-5239.0,0.00021643,2]
[358780475,1745422280600,-537.86,0.00021643,2]
[358780476,1745422280610,-249.29421135,0.00021643,2]
[358780477,1745422280620,-616.52,0.00021643,2]
[358780478,1745422280630,-500.0,0.00021673,2]
[358780479,1745422280640,-500.73644953,0.00021757,2]
[358780480,1745422280656,-223.0315306,0.00021904,2]
[358780481,1745422280665,-151.0,0.00021906,2]
[358780482,1745422280676,-901.27230684,0.00021913,2]
[358780483,1745422280687,-151.0,0.00021917,2]
[358780484,1745422280697,-500.0,0.00021917,2]
[358780485,1745422280707,-500.0,0.00021917,2]
[358780486,1745422280719,-500.0,0.00021917,2]
[358780487,1745422280729,-594.19,0.00021917,2]
[358780488,1745422280739,-909.19,0.00021917,2]
[358780489,1745422280750,-500.0,0.00021917,2]
[358780490,1745422280760,-500.0,0.00021917,2]
[358780491,1745422280770,-500.0,0.00021917,2]
[358780492,1745422280779,-500.0,0.00021917,2]
[358780493,1745422280789,-526.71768384,0.00021917,2]
[358780494,1745422280799,-896.26,0.00021917,2]
[358780495,1745422280809,-1026.46,0.00021917,2]
[358780496,1745422280822,-500.0,0.00021917,2]
[358780497,1745422280831,-500.0,0.00021917,2]
[358780498,1745422280841,-500.0,0.00021917,2]
[358780499,1745422280851,-500.0,0.00021917,2]
[358780500,1745422280861,-519.07,0.00021917,2]
[358780501,1745422280870,-151.0,0.00021917,2]
[358780502,1745422280879,-151.0,0.00021917,2]
[358780503,1745422280888,-500.0,0.00021917,2]
[358780504,1745422280902,-151.0,0.00021917,2]
[358780505,1745422280913,-500.0,0.00021917,2]
[358780506,1745422280921,-500.0,0.00021917,2]
[358780507,1745422280931,-500.0,0.00021917,2]
[358780508,1745422280940,-500.0,0.00021917,2]
[358780509,1745422280950,-1150.28,0.00021917,2]
[358780510,1745422280959,-500.0,0.00021917,2]
[358780511,1745422280969,-544.77,0.00021917,2]
[358780512,1745422280978,-500.0,0.00021917,2]
[358780513,1745422280988,-500.0,0.00021917,2]
[358780514,1745422280997,-899.96,0.00021917,2]
[358780515,1745422281007,-500.0,0.00021917,2]
[358780516,1745422281017,-549.59097858,0.00021917,2]
[358780517,1745422281026,-500.0,0.00021917,2]
[358780518,1745422281036,-160.0,0.00021917,2]
[358780519,1745422281046,-500.0,0.00021917,2]
[358780520,1745422281055,-3329.35,0.00021917,2]
[358780521,1745422281065,-500.0,0.00021917,2]
[358780522,1745422281075,-528.28,0.00021917,2]
[358780523,1745422281085,-500.0,0.00021917,2]
[358780524,1745422281095,-644.46,0.00021917,2]
[358780525,1745422281104,-500.0,0.00021917,2]
[358780526,1745422281114,-500.0,0.00021917,2]
[358780527,1745422281124,-500.0,0.00021917,2]
[358780528,1745422281134,-756.81,0.00021917,2]
[358780529,1745422281144,-572.66,0.00021917,2]
[358780530,1745422281154,-500.0,0.00021917,2]
[358780531,1745422281164,-500.0,0.00021917,2]
[358780532,1745422281174,-500.0,0.00021917,2]
[358780533,1745422281184,-903.55,0.00021917,2]
[358780534,1745422281194,-506.12,0.00021917,2]
[358780535,1745422281203,-500.0,0.00021917,2]
[358780536,1745422281214,-500.0,0.00021917,2]
[358780537,1745422281224,-500.0,0.00021917,2]
[358780538,1745422281233,-500.0,0.00021917,2]
[358780539,1745422281243,-500.0,0.00021917,2]
[358780540,1745422281253,-500.0,0.00021917,2]
[358780541,1745422281262,-2150.63,0.00021917,2]
[358780542,1745422281272,-785.397552,0.00021917,2]
[358780543,1745422281281,-500.0,0.00021917,2]
[358780544,1745422281291,-785.397559,0.00021917,2]
[358780545,1745422281300,-500.0,0.00021917,2]
[358780546,1745422281310,-500.0,0.00021917,2]
[358780547,1745422281320,-614.57,0.00021917,2]
[358780548,1745422281330,-677.08,0.00021917,2]
[358780549,1745422281340,-296.43043326,0.00021917,2]
[358780550,1745422281349,-596.25,0.00021917,2]
[358780551,1745422281359,-500.0,0.00021917,2]
[358780552,1745422281368,-740.32,0.00021917,2]
[358780553,1745422281378,-855.06,0.00021917,2]